[Event "Mitropa Cup Women 2022"]
[Site "Corte"]
[Date "2022.05.07"]
[Round "8.1"]
[White "Exler, Veronika"]
[Black "Gaal, Zsoka"]
[Result "1/2-1/2"]
[ECO "B22"]
[WhiteElo "2121"]
[BlackElo "2323"]
[Annotator "TA"]
[PlyCount "88"]
[EventDate "2022.04.30"]
[EventType "team-tourn"]
[EventCountry "FRA"]
[SourceTitle "playchess.com"]
[Source "ChessBase"]
[SourceQuality "1"]
[WhiteTeam "Austria"]
[BlackTeam "Hungary"]
[WhiteTeamCountry "AUT"]
[BlackTeamCountry "HUN"]
[TimeControl "40/5400+30:1800+30"]

{[%evp 24,88,0,0,0,0,0,-4,0,0,0,-70,-67,-78,-83,-84,-81,-85,-79,-78,-81,-83,-29,-36,-14,-16,0,-63,-8,-36,-36,-36,-36,-37,-42,-42,-32,-29,-18,-22,-21,-21,-12,-14,0,-18,-9,-15,0,-8,-8,-8,-8,-14,0,-3,0,-9,0,0,0,0,0,0,18,18,83]} 1. e4 {[%emt 0:00:01]} c5 {[%emt 0:00:14]} 2. c3 {[%emt 0:00:03]} d5 {[%emt 0:00:07]} 3. exd5 {[%emt 0:00:04]} Qxd5 {[%emt 0:00:03]} 4. d4 {[%emt 0:00:06]} g6 {[%emt 0:00:14]} 5. Nf3 {[%emt 0:03:03]} Bg7 {[%emt 0:00:12]} 6. Be3 {[%emt 0:09:17]} cxd4 {[%emt 0:00:27]} 7. cxd4 {[%emt 0:00:13]} Nf6 {[%emt 0:00:36]} 8. Nc3 {[%emt 0:00:07]} Qa5 {[%emt 0:00:17]} 9. Bc4 {[%emt 0:01:58]} O-O {[%emt 0:00:33]} 10. O-O {[%emt 0:00:30]} Bg4 {[%emt 0:00:36]} 11. h3 {[%emt 0:03:56]} Bxf3 {[%emt 0:00:19]} 12. Qxf3 {[%emt 0:00:06]} Nc6 {[%emt 0:00:24]} 13. a3 {[%emt 0:03:32]} Rad8 {[%emt 0:05:00] B22: Sicilian: 2 c3.} 14. Rad1 {[%emt 0:02:56] [#]} e6 $146 {[%emt 0:09:20]} ({Predecessor:} 14... Ne8 15. Rfe1 Nd6 16. Bd5 Qc7 17. Bxc6 bxc6 18. Bg5 Rfe8 19. d5 c5 20. Qe2 Qb7 21. Na4 {0-1 (38) Panella Navarro,S (1949)-Pruja Ramirez de Cartagena,M (2214) Granada 2009}) 15. Bb5 {[%emt 0:09:04]} Nd5 {[%emt 0:11:41]} 16. Bxc6 {[%emt 0:12:34]} bxc6 {[%emt 0:06:25]} 17. Rd3 {[%emt 0:25:16]} (17. Bg5 $11) 17... Nxe3 $15 {[%emt 0:12:07]} 18. fxe3 {[%emt 0:08:05]} c5 {[%cal Rc5d4]} 19. Rfd1 cxd4 {[%emt 0:14:38]} 20. exd4 {[%emt 0:00:32]} Rd6 {[%emt 0:01:00]} 21. Ne4 {[%emt 0:11:23]} Rd5 {[%emt 0:02:05]} 22. Nc3 {[%emt 0:00:41]} Rf5 {[%emt 0:04:03]} (22... Rd7 $17) 23. Qb7 $11 {[%emt 0:00:09]} Rf4 {[%emt 0:19:07]} 24. Ne2 {[%emt 0:01:12]} Rf5 {[%emt 0:03:50]} (24... Rh4 $11) 25. Nc3 $1 $15 {[%emt 0:00:05]} Rd8 {[%emt 0:01:12]} ({Black should try} 25... h5 $15) 26. b4 {[%emt 0:04:53]} Qb6 {[%emt 0:00:28]} ({Don't take} 26... Qxa3 27. g4 Bxd4+ 28. Kh1 $16 (28. Rxd4 Rxd4 29. Qb8+ Kg7 $11)) 27. Qxb6 {[%emt 0:00:06]} axb6 {[%emt 0:00:01]} 28. g4 {[%emt 0:00:39]} Rg5 {[%emt 0:02:10]} 29. Kf2 {[%emt 0:01:57]} h5 {[%emt 0:00:07]} 30. Kf3 {[%emt 0:00:30]} hxg4+ {[%emt 0:00:47]} 31. hxg4 {[%emt 0:00:02] The position is equal.} f5 {[%emt 0:00:15]} 32. gxf5 {[%emt 0:00:20]} Rxf5+ {[%emt 0:00:33]} 33. Kg4 {[%emt 0:02:40]} Rdf8 {[%emt 0:01:12]} 34. Ne2 {[%emt 0:00:30]} Bh6 {[%emt 0:02:36]} 35. Ng3 {[%emt 0:00:48]} Rf2 {[%emt 0:01:02]} 36. d5 {[%emt 0:00:32]} R8f4+ {[%emt 0:02:32]} 37. Kh3 {[%emt 0:00:02]} Bg5 {[%emt 0:00:54][%csl Gg5][%cal Rf4h4] [#]} 38. Nh1 {[%emt 0:00:38]} Rh4+ {[%emt 0:00:33]} 39. Kg3 {[%emt 0:00:05]} Rfh2 {[%emt 0:00:43]} 40. Nf2 {[%emt 0:00:43]} Bf4+ {[%emt 0:00:50]} 41. Kf3 {[%emt 0:01:54]} Be5 {[%emt 0:20:48] [#] Hoping for ...Rf4+.} 42. dxe6 {[%emt 0:24:51] Rd8+ is the strong threat.} Rf4+ {[%emt 0:00:09]} 43. Ke3 {[%emt 0:00:04] Black must now prevent Rd8+.} Kf8 {[%emt 0:06:19]} (43... Rfxf2 $2 44. Rd8+ Kg7 45. e7 (45. R1d7+ Kh6 $11) 45... Re2+ 46. Kd3 $16) (43... Rhxf2 $5 44. Rd8+ Kg7 $11) 44. Rd5 Bc7 {[%emt 0:01:01] Weighted Error Value: White=0.08 (flawless) /Black=0.11 (very precise)} (44... Ke7 $11) 1/2-1/2

[Event "Mitropa Cup Women 2022"]
[Site "Corte"]
[Date "2022.05.07"]
[Round "8.2"]
[White "Terbe, Zsuzsanna"]
[Black "Trippold, Denise"]
[Result "1-0"]
[ECO "E46"]
[WhiteElo "2183"]
[BlackElo "2147"]
[Annotator "TA"]
[PlyCount "89"]
[EventDate "2022.04.30"]
[EventType "team-tourn"]
[EventCountry "FRA"]
[SourceTitle "playchess.com"]
[Source "ChessBase"]
[SourceQuality "1"]
[WhiteTeam "Hungary"]
[BlackTeam "Austria"]
[WhiteTeamCountry "HUN"]
[BlackTeamCountry "AUT"]
[TimeControl "40/5400+30:1800+30"]

{[%evp 9,89,-4,4,8,0,0,1,3,0,-4,12,6,50,39,44,46,45,60,52,46,45,38,87,97,103,7,81,79,107,78,79,8,0,18,124,119,154,91,150,138,142,133,179,171,157,150,152,147,131,62,73,71,165,167,300,300,300,213,190,-5,367,354,341,325,465,486,646,631,629,608,698,682,1170,1162,1156,1139,1354,1330,1300,1279,2207,1628]} 1. d4 {[%emt 0:00:03]} e6 {[%emt 0:00:09]} 2. c4 {[%emt 0:00:14]} Nf6 {[%emt 0:00:08]} 3. Nc3 {[%emt 0:00:06]} Bb4 {[%emt 0:00:13]} 4. e3 {[%emt 0:00:06]} O-O {[%emt 0:00:20]} 5. Bd2 {[%emt 0:00:13]} c5 {[%emt 0:00:26]} 6. a3 {[%emt 0:00:27] E46: Nimzo-Indian: Rubinstein: 4 e3 0-0 5 Ne2 without early Bd3.} Bxc3 {[%emt 0:00:31]} 7. Bxc3 {[%emt 0:00:06]} Ne4 {[%emt 0:00:51]} 8. Ne2 {[%emt 0:01:37] The position is equal.} b6 {[%emt 0:08:15]} 9. d5 {[%emt 0:00:12]} Ba6 {[%emt 0:11:44]} (9... Qh4 10. g3 Qh5 11. Bg2 exd5 12. Qc2 $14 (12. cxd5 f5 $14) (12. Qxd5 Qxd5 13. cxd5 f5 $14)) 10. Qd3 {[%emt 0:00:43] [#]} f5 $146 {[%emt 0:11:33]} (10... exd5 {feels hotter.} 11. Qxd5 Qe7 12. Rc1 Nc6) ({Predecessor:} 10... exd5 11. Qxd5 Qe7 12. g3 Nc6 13. Bg2 Rae8 14. O-O Nxc3 15. Nxc3 Na5 16. Nb5 Bb7 {1-0 (39) Bluebaum,M (2660)-Swiercz,D (2649) chess24.com INT 2020}) 11. f3 {[%emt 0:07:48]} Nxc3 {[%emt 0:02:17]} 12. Nxc3 {[%emt 0:00:46]} e5 {[%emt 0:03:32]} 13. O-O-O {[%emt 0:09:55]} d6 {[%emt 0:03:02]} 14. g4 {[%emt 0:03:57]} e4 {[%emt 0:17:16]} 15. fxe4 {[%emt 0:02:56]} fxe4 {[%emt 0:00:25]} (15... fxg4 $14 16. e5 Nd7) 16. Qxe4 $16 {[%emt 0:05:52]} (16. Nxe4 Nd7 $11) 16... Re8 {[%emt 0:00:12]} 17. Qf5 {[%emt 0:08:16]} (17. Qc2 $1 $16) 17... Re5 {[%emt 0:04:08]} (17... Nd7 $1 $11) 18. Qf4 {[%emt 0:00:37][%cal Og4g5] 0x0.001ddff32f0fdp-1022s more active pieces. The black rooks are badly placed.} Qe7 {[%emt 0:01:14] Prevents g5.} 19. Bd3 {[%emt 0:02:19]} Nd7 {[%emt 0:00:52] [#]} 20. Rde1 {[%emt 0:05:31]} (20. Kd2 $1 $16) 20... Rf8 $11 {[%emt 0:18:18]} 21. Qg3 $36 {[%emt 0:00:22][%mdl 2048] White wants to play h4. White has good play.} Re8 {[%emt 0:00:05]} (21... h5 $1 $11 {keeps the balance.}) 22. Kd2 $16 {[%emt 0:10:35]} (22. Qh3 $6 Nf6 $11) 22... Bb7 {[%emt 0:02:01]} 23. Qh3 {[%emt 0:08:04]} (23. Rhf1 $142) 23... g6 {[%emt 0:00:17]} (23... Nf6 $142) 24. Qg3 {[%emt 0:01:23]} a6 {[%emt 0:00:38][%cal Ob6b5]} 25. a4 {[%emt 0:00:35] Prevents b5.} Nf6 {[%emt 0:05:41]} (25... Rb8 $16) 26. Rhf1 $18 {[%emt 0:15:57]} Bc8 {[%emt 0:01:59]} 27. h3 {[%emt 0:05:31]} Bd7 {[%emt 0:00:01]} 28. Rf3 {[%emt 0:01:15] aiming for Ref1.} b5 {[%emt 0:03:13] [#]} 29. axb5 (29. b3 $1 $16) 29... axb5 $14 {[%emt 0:00:01]} 30. b3 {[%emt 0:06:55][%cal Bb2b3,Bb3c4][%mdl 32]} bxc4 {[%emt 0:00:56]} (30... b4 $16 31. Nd1 Rf8) 31. bxc4 $18 {[%emt 0:00:44] Ref1 is the strong threat.} Bc8 {[%emt 0:03:06]} (31... Rf8 $142 32. Ref1 Kg7) 32. Ref1 {[%emt 0:01:09]} Rf8 {[%emt 0:02:07]} 33. Qf2 {[%emt 0:00:15][%cal Rf3f6]} Kg7 {[%emt 0:00:45]} 34. g5 $2 {[%emt 0:00:55]} ({Not} 34. Qh4 Rxe3 35. g5 (35. Rxe3 Ne4+ 36. Nxe4 Qxh4 $17) 35... Rxf3 36. Rxf3 Nh5 37. Rxf8 Kxf8 $11) ({Better is} 34. Rg1 $18) 34... Nd7 $2 {[%emt 0:00:08][%mdl 8192] Black cannot hold the game after this.} (34... Rxg5 $11 35. Qh2 Rh5) 35. Rxf8 {[%emt 0:00:11] Really sharp!} Nxf8 {[%emt 0:00:01]} 36. h4 {[%emt 0:01:05]} Nd7 {[%emt 0:01:10]} (36... Bf5 $142 37. e4 (37. Bxf5 Rxf5 38. Qg2 Rxf1 $16) 37... Bd7) 37. Nb5 {[%emt 0:00:45] White is clearly winning.} Nb6 {[%emt 0:00:53]} 38. Qf6+ {[%emt 0:00:17]} Qxf6 {[%emt 0:00:19]} 39. Rxf6 {[%emt 0:00:44]} Re7 {[%emt 0:00:38]} 40. Rxd6 {[%emt 0:00:27]} Nd7 {[%emt 0:00:25]} 41. Rc6 {[%emt 0:03:57]} Bb7 {[%emt 0:01:16]} 42. Rc7 {[%emt 0:00:09]} Ba6 {[%emt 0:00:24]} 43. Nd6 {[%emt 0:00:13]} Kf8 {[%emt 0:01:40]} 44. Ra7 {[%emt 0:00:19]} Nb8 {[%emt 0:00:08]} 45. Ra8 {[%emt 0:00:11] Weighted Error Value: White=0.25 (precise) /Black=0.47} 1-0

[Event "Mitropa Cup Women 2022"]
[Site "Corte"]
[Date "2022.05.07"]
[Round "8.2"]
[White "Nemcova, Karin"]
[Black "Navrotescu, Andreea"]
[Result "0-1"]
[ECO "C11"]
[WhiteElo "2181"]
[BlackElo "2318"]
[Annotator "TA"]
[PlyCount "70"]
[EventDate "2022.04.30"]
[EventType "team-tourn"]
[EventCountry "FRA"]
[SourceTitle "playchess.com"]
[Source "ChessBase"]
[SourceQuality "1"]
[WhiteTeam "Czech Republic"]
[BlackTeam "France"]
[WhiteTeamCountry "CZE"]
[BlackTeamCountry "FRA"]
[TimeControl "40/5400+30:1800+30"]

{[%evp 14,70,33,-4,-4,-25,-14,-77,-38,-87,-68,-74,-74,-58,-68,-76,-62,-83,-71,-83,-84,-96,-45,-81,-79,-194,-189,-175,-157,-149,-140,-123,-133,-208,-157,-141,-127,-160,-146,-206,-204,-414,-385,-705,-719,-653,-696,-703,-677,-1078,-1068,-1287,-1272,-1143,-1156,-1335,-1377,-1082,-758]} 1. e4 {[%emt 0:00:02]} e6 {[%emt 0:00:08]} 2. d4 {[%emt 0:00:06]} d5 {[%emt 0:00:09]} 3. Nc3 {[%emt 0:00:07]} Nf6 {[%emt 0:00:08]} 4. Bg5 {[%emt 0:00:07]} dxe4 {[%emt 0:00:17]} 5. Nxe4 {[%emt 0:00:13]} Be7 {[%emt 0:00:14]} 6. Bxf6 {[%emt 0:00:58]} gxf6 {[%emt 0:00:07]} 7. Nf3 {[%emt 0:00:47]} f5 {[%emt 0:01:08]} 8. Ned2 {[%emt 0:01:24]} c5 {[%emt 0:01:09][%cal Bc7c5,Bc5d4][%mdl 32] C13: French: Classical System: 4 Bg5 Be7, Alekhine-Chatard Attack.} 9. Nc4 {[%emt 0:02:34]} Nc6 {[%emt 0:01:54] [#]} 10. Nce5 $146 {[%emt 0:13:58]} (10. dxc5 $11 O-O 11. Qxd8 Rxd8 12. Nd6) ({Predecessor:} 10. dxc5 Bxc5 11. Qxd8+ Kxd8 12. c3 Bd7 13. Be2 Ke7 14. O-O Rhc8 15. Rfe1 b5 16. Nce5 Nxe5 17. Nxe5 {½-½ (101) Kokkila,T (2283)-Kjartansson,G (2443) Terme Catez 2021}) 10... Nxd4 {[%emt 0:06:12] Strongly threatening ...Bf6. Black is better.} 11. Nxd4 {[%emt 0:02:23]} (11. c3 $15 Nxf3+ 12. Qxf3) 11... Qxd4 {[%emt 0:00:03]} 12. Bb5+ {[%emt 0:02:33]} Kf8 {[%emt 0:00:04]} 13. Qxd4 {[%emt 0:01:09]} cxd4 {[%emt 0:00:02]} 14. O-O-O {[%emt 0:01:20]} a6 {[%emt 0:04:44]} 15. Be2 {[%emt 0:13:33]} f6 {[%emt 0:00:52]} 16. Nc4 {[%emt 0:00:19] [#]} Bc5 $1 {[%emt 0:05:17]} 17. b4 {[%emt 0:06:20] [#]} Bxb4 {[%emt 0:11:04]} ({Better is} 17... Ba7 $1 $17 18. f4 Ke7) 18. Rxd4 {[%emt 0:00:52]} Ke7 {[%emt 0:00:09]} 19. Bf3 {[%emt 0:04:49]} (19. Rd3 $17 {is a better defense.}) 19... e5 $19 {[%emt 0:12:27][%cal Be6e5,Be5e4][%mdl 32]} 20. Rh4 {[%emt 0:04:34]} Bc5 {[%emt 0:04:49] Against Nb6} 21. Ne3 {[%emt 0:14:11]} e4 {[%emt 0:03:21]} 22. Be2 {[%emt 0:01:23]} Be6 {[%emt 0:00:30] Inhibits Nd5+.} 23. Kb2 {[%emt 0:00:32]} (23. Rf4 $17) 23... Rac8 {[%emt 0:02:07] White must now prevent ...Bd4+.} 24. Rd1 {[%emt 0:02:13] Against Bd4+} Bd6 {[%emt 0:01:31]} 25. c4 {[%emt 0:03:50]} Be5+ {[%emt 0:00:59]} 26. Kb3 {[%emt 0:01:25]} (26. Kc1 $17) 26... b5 {[%emt 0:01:31]} 27. Rh5 $2 {[%emt 0:09:21]} (27. Kc2) 27... bxc4+ {[%emt 0:00:34]} 28. Bxc4 $2 {[%emt 0:04:57] [#]} (28. Kc2 Rb8 29. Rb1) 28... Rxc4 $1 {[%emt 0:00:17][%mdl 512] Black is clearly winning.} 29. Nxc4 {[%emt 0:00:15]} Rb8+ {[%emt 0:00:14][%mdl 64] Deflection} 30. Ka4 {[%emt 0:03:29]} Bxc4 {[%emt 0:00:11] This bishop pair is nice.} 31. Rxh7+ {[%emt 0:00:06]} Ke6 {[%emt 0:00:08] Threatens to win with ...Bb5+.} 32. Rc1 {[%emt 0:00:48]} Bb5+ {[%emt 0:00:41]} 33. Ka5 {[%emt 0:00:22]} Bf4 {[%emt 0:03:03] ( -> ...Bd2+)} 34. Rc2 {[%emt 0:00:08] Prevents Bd2+.} Bd3 {[%emt 0:00:38]} 35. Rc6+ {[%emt 0:01:38]} Ke5 {Weighted Error Value: White=0.72/Black=0.09 (flawless)} 0-1

[Event "Mitropa Cup Women 2022"]
[Site "Corte"]
[Date "2022.05.07"]
[Round "8.2"]
[White "Nadzamova, Viktoria"]
[Black "Medic, Mirjana"]
[Result "1-0"]
[ECO "C02"]
[WhiteElo "2135"]
[BlackElo "2167"]
[Annotator "TA"]
[PlyCount "85"]
[EventDate "2022.04.30"]
[EventType "team-tourn"]
[EventCountry "FRA"]
[SourceTitle "playchess.com"]
[Source "ChessBase"]
[SourceQuality "1"]
[WhiteTeam "Slovakia"]
[BlackTeam "Croatia"]
[WhiteTeamCountry "SVK"]
[BlackTeamCountry "CRO"]
[TimeControl "40/5400+30:1800+30"]

{[%evp 12,85,19,-31,106,106,106,98,122,108,140,147,201,184,234,225,221,218,253,213,263,229,219,250,364,180,250,173,258,251,265,265,268,263,295,289,288,297,297,175,152,116,468,190,204,183,193,171,176,174,328,288,364,377,341,363,751,239,1101,855,1887,1821,1541,832,1667,1783,1809,1433,1219,790,29981,29982,29981,679,29992,29993]} 1. e4 {[%emt 0:00:02]} e6 {[%emt 0:00:05]} 2. d4 {[%emt 0:00:07]} d5 {[%emt 0:00:05]} 3. e5 {[%emt 0:00:07]} c5 {[%emt 0:00:08]} 4. c3 {[%emt 0:00:07]} Nc6 {[%emt 0:00:07]} 5. Nf3 {[%emt 0:00:10]} Qb6 {[%emt 0:00:16]} 6. Bd3 {[%emt 0:00:22]} Bd7 {[%emt 0:00:21]} 7. O-O $1 {[%emt 0:00:28] The main line 7.0-0 scores better than 7.dxc5.} ({Better is} 7. dxc5 $11 Bxc5 8. O-O) 7... h6 {[%emt 0:13:27] C02: French: Advance Variation.} (7... cxd4 $15 {keeps the upper hand.} 8. Nbd2 dxc3 9. bxc3 Nge7) 8. dxc5 $1 $16 {[%emt 0:01:33]} Bxc5 {[%emt 0:00:06]} 9. b4 {[%emt 0:00:20][%cal Bb2b4,Bb4b5][%mdl 32]} Be7 {[%emt 0:00:50] White is better.} 10. Re1 {[%emt 0:03:47] [#]} a5 $146 {[%emt 0:04:34]} ({Predecessor:} 10... g5 11. h3 Qc7 12. a4 O-O-O 13. Na3 f6 14. exf6 Nxf6 15. b5 Na5 16. Ne5 Rhg8 {1-0 (52) Barczi,T (2066)-Kubica,V (1946) Slovakia 2019}) 11. b5 {[%emt 0:16:18] aiming for Be3.} Na7 {[%emt 0:00:41]} (11... Nd8 $16 12. a4 Bc5) 12. a4 $18 {[%emt 0:02:15]} Bc5 {[%emt 0:00:43]} (12... Qc7 {might work better.} 13. Bb2 Nc8) 13. Qe2 {[%emt 0:02:04]} Ne7 {[%emt 0:00:36]} 14. Nbd2 {[%emt 0:01:25]} Qd8 {[%emt 0:04:57]} 15. Nd4 {[%emt 0:16:50]} O-O {[%emt 0:07:57]} 16. N2b3 {[%emt 0:08:07]} Bxd4 {[%emt 0:09:57]} 17. Nxd4 {[%emt 0:00:37]} f5 {[%emt 0:00:33]} (17... Nf5 {keeps fighting.} 18. Bxf5 exf5) 18. Qh5 {[%emt 0:03:39]} (18. exf6 $142 Rxf6 19. c4) 18... Qe8 {[%emt 0:02:38]} (18... Qc7 $142) 19. Qh4 {[%emt 0:01:27]} Qf7 {[%emt 0:02:31]} (19... Nac8 $142 20. Ba3 Rf7) 20. f4 {[%emt 0:12:26]} Ng6 {[%emt 0:05:18]} 21. Qf2 {[%emt 0:00:22]} Nc8 {[%emt 0:02:26]} 22. Ba3 {[%emt 0:02:43]} Nce7 {[%emt 0:01:24]} 23. Ra2 {[%emt 0:04:45]} Rfc8 {[%emt 0:02:19]} 24. Rc2 {[%emt 0:00:58]} b6 {[%emt 0:03:47]} 25. g4 {[%emt 0:05:22]} (25. Bd6 $142) 25... fxg4 {[%emt 0:02:47]} 26. f5 {[%emt 0:00:05] White is much more active.} Nf8 {[%emt 0:00:28][%mdl 8192] A mistake that costs the game.} (26... Nxf5 $16 27. Bxf5 exf5) 27. f6 {[%emt 0:02:50]} (27. fxe6 $142 Bxe6 28. Qxf7+ Kxf7 29. Rf1+ Ke8 30. Rxf8+ $1 {[%mdl 512]} Kxf8 31. Nxe6+ Kf7 32. Nd4) 27... Neg6 {[%emt 0:00:50]} 28. Qg3 {[%emt 0:03:17]} gxf6 {[%emt 0:07:31]} 29. Qxg4 {[%emt 0:00:31]} f5 {[%emt 0:00:31]} 30. Qg3 {[%emt 0:01:14][%mdl 1024] Hoping for Kh1. White has strong compensation.} Kh7 $2 {[%emt 0:01:27]} (30... Kh8 31. Qe3 Nh7) 31. Kh1 $1 {[%emt 0:01:17]} Ra7 {[%emt 0:07:00]} 32. h4 {[%emt 0:01:54][%cal Bh2h4,Bh4h5][%mdl 32]} Rac7 {[%emt 0:01:14]} 33. h5 {[%emt 0:01:46]} Ne7 {[%emt 0:02:04]} (33... Rxc3 34. Rxc3 (34. hxg6+ Qxg6 35. Qh4 Qg7 $16) 34... Rxc3) 34. Rg1 $2 {[%emt 0:02:53]} (34. Bxe7 Rxc3 35. Rxc3 Rxc3 36. Bxf8) 34... Be8 $2 {[%emt 0:01:56]} (34... Rxc3 35. Rxc3 Rxc3 36. Bxe7 Rxd3 $1 37. Qxd3 Qxe7) 35. Rcg2 {[%emt 0:02:10] Black must now prevent Bxe7.} Neg6 {[%emt 0:06:09]} 36. hxg6+ {[%emt 0:00:16]} Nxg6 {[%emt 0:00:02]} 37. Ne2 {[%emt 0:01:02]} Qg8 {[%emt 0:07:20]} 38. Nf4 {[%emt 0:01:48]} Rxc3 {[%emt 0:00:38]} 39. Bb2 {[%emt 0:00:12]} Rb3 {[%emt 0:01:08]} 40. Ba1 {[%emt 0:01:58] Threatens to win with Nh5.} Qf7 {[%emt 0:02:31]} 41. Nxg6 {[%emt 0:03:36]} Qxg6 {[%emt 0:00:13] [#]} 42. Qh3 {[%emt 0:00:14]} ({Weaker is} 42. Qxg6+ Bxg6 43. Rc2 (43. Rxg6 Rxd3 44. Rg7+ Kh8 $14) 43... Rxc2 44. Bxc2 Rb4 $14) (42. Qh4 $142 $1 Rc7 43. Rxg6 Bxg6 {[#]} 44. Qf6 $1 Rg7 45. Bxf5 $1 {[%mdl 512]} Rh3+ 46. Bxh3 Be4+ 47. Kh2) 42... Qf7 {[%emt 0:00:55] [#]} 43. Bxf5+ $1 {[%emt 0:00:34][%mdl 512] Weighted Error Value: White=0.51/Black=1.02} 1-0

[Event "Mitropa Cup Women 2022"]
[Site "Corte"]
[Date "2022.05.07"]
[Round "8.3"]
[White "Benmesbah, Natacha"]
[Black "Sikorova, Olga"]
[Result "1-0"]
[ECO "C15"]
[WhiteElo "2251"]
[BlackElo "2173"]
[Annotator "TA"]
[PlyCount "63"]
[EventDate "2022.04.30"]
[EventType "team-tourn"]
[EventCountry "FRA"]
[SourceTitle "playchess.com"]
[Source "ChessBase"]
[SourceQuality "1"]
[WhiteTeam "France"]
[BlackTeam "Czech Republic"]
[WhiteTeamCountry "FRA"]
[BlackTeamCountry "CZE"]
[TimeControl "40/5400+30:1800+30"]

{[%evp 13,63,16,12,-1,20,7,3,0,7,0,0,0,25,0,0,0,0,-44,-26,-56,41,-35,-2,-89,-8,-225,428,418,385,259,285,296,311,305,300,306,458,478,487,475,463,460,909,918,935,933,907,899,29986,29987,29978,29979]} 1. e4 {[%emt 0:00:01]} e6 {[%emt 0:00:06]} 2. d4 {[%emt 0:00:04]} d5 {[%emt 0:00:10]} 3. Nc3 {[%emt 0:00:04]} Bb4 {[%emt 0:00:09]} 4. exd5 {[%emt 0:00:27]} exd5 {[%emt 0:00:13]} 5. Bd3 {[%emt 0:00:04]} Nf6 {[%emt 0:04:30]} 6. Nge2 {[%emt 0:00:21]} c6 {[%emt 0:09:02]} 7. O-O {[%emt 0:00:40]} O-O {[%emt 0:00:38]} 8. Bg5 {[%emt 0:06:19] C01: French: Exchange Variation.} Bg4 {[%emt 0:16:05]} 9. f3 {[%emt 0:03:20]} Bh5 {[%emt 0:00:27]} 10. Nf4 {[%emt 0:00:44] The position is equal.} Bg6 {[%emt 0:00:18]} 11. Nxg6 {[%emt 0:00:05]} hxg6 {[%emt 0:01:04]} 12. f4 {[%emt 0:05:07] aiming for f5.} Qb6 {[%emt 0:15:28]} (12... Nbd7 $5 {[%cal Rb4c3]}) 13. Ne2 {[%emt 0:02:10]} (13. Bxf6 $5 gxf6 14. Ne2 $11) 13... Nh7 {[%emt 0:00:21] [#]} 14. c3 $146 {[%emt 0:05:37]} ({Predecessor:} 14. Bh4 f5 15. c4 dxc4 16. Bxc4+ Kh8 17. Kh1 Nd7 18. Ng1 Bd6 19. d5 cxd5 20. Qxd5 {1-0 (43) Popov,I (2632)-Vallejo Pons,F (2706) Khanty-Mansiysk 2013}) 14... Bd6 {[%emt 0:00:29]} 15. Qe1 {[%emt 0:01:22]} Nd7 {[%emt 0:05:48]} 16. Qh4 {[%emt 0:03:10]} f5 {[%emt 0:08:39]} (16... Qxb2 17. Be7 Bxe7 18. Qxe7 $11) ({Black should try} 16... Rae8 $15 17. f5 Ne5 18. fxg6 fxg6) 17. b3 {[%emt 0:04:52]} (17. Be7 Bxe7 18. Qxe7 Rfe8 $15) ({Better is} 17. g4 $1 $14 Qxb2 18. gxf5 gxf5 19. Rfd1 (19. Be7 Bxe7 20. Qxe7 Rf7 $17)) 17... Rae8 {[%emt 0:03:04]} 18. Rf3 {[%emt 0:05:45] Prevents Re3.} (18. g4 $1 $11) 18... Re6 {[%emt 0:03:56]} (18... Nxg5 $17 19. Qxg5 Re6) 19. g4 $2 {[%emt 0:17:46]} (19. Rh3 $11 Ndf6 20. Rf1 (20. Bxf6 Nxf6 21. Ng3 Re3 $17)) 19... Nhf6 $4 {[%emt 0:19:26][%mdl 8192]} (19... Nxg5 $19 {and all is fine.} 20. fxg5 Ne5) 20. gxf5 $18 {[%emt 0:06:25]} (20. Rh3 fxg4 21. Rg3 (21. Qh8+ $2 Kf7 $17) 21... Rfe8 $17) 20... gxf5 {[%emt 0:00:01]} 21. Rh3 {[%emt 0:02:16]} g6 {[%emt 0:04:23]} 22. Ng3 $1 {[%emt 0:06:22][%cal Og3f5] Hoping for Nxf5!} (22. Qh6 Kf7 $11) (22. Bxf6 Nxf6 23. Kh1 (23. Qh6 Kf7 $15) (23. Bxf5 gxf5 24. Ng3 Kf7 $17) 23... Kf7 $11) 22... Kf7 {[%emt 0:01:18] [#]} 23. Nxf5 $1 {[%emt 0:02:51][%mdl 512]} gxf5 {[%emt 0:00:02]} 24. Bxf5 {[%emt 0:00:05] Chess con chili. A strong pair of Bishops.} Qc7 {[%emt 0:00:56]} (24... Rg8 $142 25. Kh1 Qd8 26. Qh7+ Nxh7 27. Rxh7+ Ke8 28. Bxd8 Re2) 25. Bxe6+ {[%emt 0:00:52]} (25. Qh6 Rg8 $16) 25... Kxe6 {[%emt 0:00:01]} 26. Re1+ {[%emt 0:03:34]} Kf7 {[%emt 0:00:54]} 27. Rg3 {[%emt 0:00:55] And now Qh3 would win.} Qc8 {[%emt 0:02:12] [#]} (27... Rg8 $142 28. Qh3 Nf8 29. Bxf6 Rxg3+ 30. Qxg3 (30. hxg3 Kxf6 31. Qh6+ Kf7 $18) 30... Kxf6 31. Qg5+ Kf7) 28. Qh3 $1 {[%emt 0:02:20] Qe6+ would kill now.} Re8 {[%emt 0:01:08] Prevents Qe6+.} 29. Rxe8 {[%emt 0:01:06]} ({Stronger than} 29. Rge3 Nf8 30. f5 (30. Qxc8 Rxc8 31. Bxf6 Kxf6 $11) 30... Rxe3 31. Bxe3 (31. Rxe3 N8h7 $11) 31... N8h7 $11) 29... Qxe8 {[%emt 0:00:08]} 30. Re3 {[%emt 0:00:10]} Qf8 {[%emt 0:01:27]} 31. Qe6+ {[%emt 0:01:19]} Kg7 {[%emt 0:02:16]} 32. Rg3 {[%emt 0:00:44] Weighted Error Value: White=0.29 (precise) /Black=1.00} 1-0